fUST/lending_fUST_20241210
["ID","MTS","AMOUNT","RATE_DAILY","PERIOD"]
[344837813,1733824234798,-564.004256,0.00024,7]
[344837814,1733824234808,-183.865235,0.00024,7]
[344837815,1733824234817,-652.020454,0.00024,7]
[344837816,1733824234828,-183.865235,0.00024,7]
[344837817,1733824234838,-652.020454,0.00024,7]
[344837818,1733824234848,-719.442687,0.00024,7]
[344837819,1733824234858,-719.442687,0.00024,7]
[344837820,1733824234868,-151.0,0.00024,7]
[344837821,1733824234883,-293.478634,0.00024,7]
[344837822,1733824234893,-293.478634,0.00024,7]
[344837823,1733824234903,-151.0,0.00024,7]
[344837824,1733824234912,-151.0,0.00024,7]
[344837825,1733824234922,-153.722496,0.00024,7]
[344837826,1733824234931,-153.722496,0.00024,7]
[344837827,1733824234941,-151.0,0.00024,7]
[344837828,1733824234951,-151.0,0.00024,7]
[344837829,1733824234961,-151.0,0.00024,7]
[344837830,1733824234970,-350.924054,0.00024,7]
[344837831,1733824234980,-350.924054,0.00024,7]
[344837832,1733824234990,-317.160023,0.00024,7]
[344837833,1733824235000,-317.160023,0.00024,7]
[344837834,1733824235010,-374.086881,0.00024,7]
[344837835,1733824235020,-374.086881,0.00024,7]
[344837836,1733824235030,-185.214921,0.00024,7]
[344837837,1733824235039,-185.214921,0.00024,7]
[344837838,1733824235049,-151.36463391,0.00024,2]
[344837839,1733824235059,-151.64708251,0.00024,2]
[344837840,1733824235068,-152.09219813,0.00024,2]
[344837841,1733824235077,-500.0,0.00024,2]
[344837842,1733824235088,-315.234612,0.00024,7]
[344837843,1733824235098,-315.234612,0.00024,7]
[344837844,1733824235107,-234.516001,0.00024,7]
[344837845,1733824235117,-500.0,0.00024,2]
[344837846,1733824235130,-150.14,0.00024,2]
[344837847,1733824235140,-154.0979262,0.00024,2]
[344837848,1733824235149,-234.516001,0.00024,7]
[344837849,1733824235159,-150.14,0.00024092,2]
[344837850,1733824235168,-500.0,0.00024092,2]
[344837851,1733824235178,-151.0,0.000241,7]
[344837852,1733824235188,-151.0,0.000241,7]
[344837853,1733824235198,-153.0,0.0002411,2]
[344837854,1733824235207,-400.0,0.00024149,2]
[344837855,1733824235217,-500.0,0.00024199,7]
[344837856,1733824235226,-160.5,0.0002424,2]
[344837857,1733824235236,-397.0,0.0002424,2]
[344837858,1733824235245,-319.4793541,0.00024263,2]
[344837859,1733824235255,-420.0,0.0002427,2]
[344837860,1733824235264,-500.0,0.00024274,2]
[344837861,1733824235274,-500.0,0.00024274,2]
[344837862,1733824235284,-153.0,0.00024274,2]
[344837863,1733824235294,-213.5058504,0.00024274,2]
[344837864,1733824235304,-153.0,0.00024274,2]
[344837865,1733824235313,-213.5058504,0.00024274,2]
[344837866,1733824235322,-153.0,0.00024274,2]
[344837867,1733824235332,-213.5058504,0.00024274,2]
[344837868,1733824235342,-213.5058504,0.00024274,2]
[344837869,1733824235355,-213.5058504,0.00024274,2]
[344837870,1733824235365,-513.1978614,0.00024274,2]
[344837871,1733824235376,-151.0,0.000243,8]
[344837872,1733824235386,-151.0,0.000243,7]
[344837873,1733824235395,-1712.02319774,0.000243,2]
[344837874,1733824235404,-505.66340169,0.00024322,2]
[344837875,1733824235414,-262.30032974,0.00024344,2]
[344837876,1733824235423,-263.54736924,0.00024344,2]
[344837877,1733824235433,-528.2905009,0.00024344,2]
[344837878,1733824235443,-507.22794914,0.00024344,2]
[344837879,1733824235453,-160.33945619,0.00024344,2]
[344837880,1733824235462,-203.4,0.00024344,2]
[344837881,1733824235471,-160.0,0.00024344,2]
[344837882,1733824235481,-160.0,0.00024344,2]
[344837883,1733824235490,-250.84929905,0.00024366,2]
[344837884,1733824235499,-500.0,0.00024366,2]
[344837885,1733824235509,-501.1192564,0.00024473,7]
[344837886,1733824235518,-500.83615301,0.000245,2]
[344837887,1733824235528,-151.0,0.000245,6]
[344837888,1733824235537,-151.0,0.000245,6]
[344837889,1733824235546,-859.81589007,0.00024548,2]
[344837890,1733824235556,-543.52218448,0.00024548,2]
[344837891,1733824235565,-1289.68760744,0.00024549,2]
[344837892,1733824235575,-315.234612,0.00024549,7]
[344837893,1733824235584,-315.234612,0.00024549,7]
[344837894,1733824235594,-706.11650364,0.0002464,2]
[344837895,1733824235604,-955.3432749,0.00024658,4]
[344837896,1733824235614,-500.0,0.00024673,2]
[344837897,1733824235624,-27698.37,0.000247,2]
[344837898,1733824235636,-666.0,0.000247,2]
[344837899,1733824235646,-151.0,0.000247,7]
[344837900,1733824235656,-251.57313,0.000247,7]
[344837901,1733824235665,-151.0,0.000247,7]
[344837902,1733824235675,-151.0,0.000247,7]
[344837903,1733824235684,-151.0,0.000247,7]
[344837904,1733824235693,-240.548382,0.000247,7]
[344837905,1733824235703,-313.872666,0.000247,7]
[344837906,1733824235711,-313.872666,0.000247,7]
[344837907,1733824235721,-313.872666,0.000247,7]
[344837908,1733824235731,-313.872666,0.000247,7]
[344837909,1733824235740,-1670.649893,0.000247,7]
[344837910,1733824235750,-1670.649893,0.000247,7]
[344837911,1733824235759,-564.004256,0.000247,7]
[344837912,1733824235769,-564.004256,0.000247,7]
[344837913,1733824235778,-564.004256,0.000247,7]
[344837914,1733824235788,-564.004256,0.000247,7]
[344837915,1733824235797,-183.865235,0.000247,7]
[344837916,1733824235806,-183.865235,0.000247,7]
[344837917,1733824235816,-652.020454,0.000247,7]
[344837918,1733824235825,-652.020454,0.000247,7]
[344837919,1733824235835,-183.865235,0.000247,7]
[344837920,1733824235844,-183.865235,0.000247,7]
[344837921,1733824235854,-652.020454,0.000247,7]
[344837922,1733824235863,-652.020454,0.000247,7]
[344837923,1733824235873,-719.442687,0.000247,7]
[344837924,1733824235885,-719.442687,0.000247,7]
[344837925,1733824235902,-719.442687,0.000247,7]
[344837926,1733824235912,-719.442687,0.000247,7]
[344837927,1733824235921,-719.442687,0.000247,7]
[344837928,1733824235931,-719.442687,0.000247,7]
[344837929,1733824235941,-151.0,0.000247,7]
[344837930,1733824235951,-151.0,0.000247,7]
[344837931,1733824235960,-151.0,0.000247,7]
[344837932,1733824235970,-293.478634,0.000247,7]
[344837933,1733824236062,-293.478634,0.000247,7]
[344837934,1733824236072,-293.478634,0.000247,7]
[344837935,1733824236082,-293.478634,0.000247,7]
[344837936,1733824236091,-151.0,0.000247,7]
[344837937,1733824236101,-151.0,0.000247,7]
[344837938,1733824236110,-151.0,0.000247,7]
[344837939,1733824236119,-151.0,0.000247,7]
[344837940,1733824236129,-151.0,0.000247,7]
[344837941,1733824236139,-151.0,0.000247,7]
[344837942,1733824236148,-153.722496,0.000247,7]
[344837943,1733824236157,-153.722496,0.000247,7]
[344837944,1733824236166,-153.722496,0.000247,7]
[344837945,1733824236175,-153.722496,0.000247,7]
[344837946,1733824236184,-151.0,0.000247,7]
[344837947,1733824236194,-151.0,0.000247,7]
[344837948,1733824236203,-151.0,0.000247,7]
[344837949,1733824236212,-350.924054,0.000247,7]
[344837950,1733824236222,-350.924054,0.000247,7]
[344837951,1733824236231,-350.924054,0.000247,7]
[344837952,1733824236240,-350.924054,0.000247,7]
[344837953,1733824236249,-317.160023,0.000247,7]
[344837954,1733824236258,-317.160023,0.000247,7]
[344837955,1733824236267,-317.160023,0.000247,7]
[344837956,1733824236276,-317.160023,0.000247,7]
[344837957,1733824236286,-374.086881,0.000247,7]
[344837958,1733824236295,-374.086881,0.000247,7]
[344837959,1733824236305,-374.086881,0.000247,7]
[344837960,1733824236314,-374.086881,0.000247,7]
[344837961,1733824236323,-185.214921,0.000247,7]
[344837962,1733824236332,-185.214921,0.000247,7]
[344837963,1733824236341,-185.214921,0.000247,7]
[344837964,1733824236353,-185.214921,0.000247,7]
[344837965,1733824236362,-315.234612,0.000247,7]
[344837966,1733824236371,-315.234612,0.000247,7]
[344837967,1733824236389,-315.234612,0.000247,7]
[344837968,1733824236398,-315.234612,0.000247,7]
[344837969,1733824236407,-234.516001,0.000247,7]
[344837970,1733824236416,-234.516001,0.000247,7]
[344837971,1733824236427,-234.516001,0.000247,7]
[344837972,1733824236436,-234.516001,0.000247,7]
[344837973,1733824236445,-151.0,0.000248,6]
[344837974,1733824236454,-151.0,0.000248,9]
[344837975,1733824236463,-151.0,0.000248,7]
[344837976,1733824236472,-517.1806868,0.00024873,2]
[344837977,1733824236483,-500.0,0.00024873,2]
[344837978,1733824236492,-267.5,0.00024873,2]
[344837979,1733824236501,-340.0,0.00024873,2]
[344837980,1733824236511,-160.0,0.00024873,2]
[344837981,1733824236520,-155.0,0.00024873,2]
[344837982,1733824236529,-293.478634,0.00024873,7]
[344837983,1733824236539,-293.478634,0.00024873,7]
[344837984,1733824236548,-153.722496,0.00024873,7]
[344837985,1733824236558,-153.722496,0.00024873,7]
[344837986,1733824236567,-350.924054,0.00024873,7]
[344837987,1733824236576,-350.924054,0.00024873,7]
[344837988,1733824236585,-317.160023,0.00024873,7]
[344837989,1733824236594,-317.160023,0.00024873,7]
[344837990,1733824236603,-185.214921,0.00024873,7]
[344837991,1733824236612,-185.214921,0.00024873,7]
[344837992,1733824236621,-151.0,0.0002489,7]
[344837993,1733824236634,-313.872666,0.0002489,7]
[344837994,1733824236643,-313.872666,0.0002489,7]
[344837995,1733824236652,-313.872666,0.0002489,7]
[344837996,1733824236661,-313.872666,0.0002489,7]
[344837997,1733824236670,-1670.649893,0.0002489,7]
[344837998,1733824236679,-1670.649893,0.0002489,7]
[344837999,1733824236688,-1670.649893,0.0002489,7]
[344838000,1733824236698,-564.004256,0.0002489,7]
[344838001,1733824236707,-564.004256,0.0002489,7]
[344838002,1733824236716,-564.004256,0.0002489,7]
[344838003,1733824236725,-564.004256,0.0002489,7]
[344838004,1733824236735,-183.865235,0.0002489,7]
[344838005,1733824236744,-183.865235,0.0002489,7]
[344838006,1733824236753,-652.020454,0.0002489,7]
[344838007,1733824236762,-652.020454,0.0002489,7]
[344838008,1733824236771,-183.865235,0.0002489,7]
[344838009,1733824236781,-183.865235,0.0002489,7]
[344838010,1733824236790,-652.020454,0.0002489,7]
[344838011,1733824236799,-652.020454,0.0002489,7]
[344838012,1733824236808,-719.442687,0.0002489,7]
[344838013,1733824236822,-719.442687,0.0002489,7]
[344838014,1733824236841,-719.442687,0.0002489,7]
[344838015,1733824236851,-719.442687,0.0002489,7]
[344838016,1733824236861,-151.0,0.0002489,7]
[344838017,1733824236870,-293.478634,0.0002489,7]
[344838018,1733824236883,-293.478634,0.0002489,7]
[344838019,1733824236893,-151.0,0.0002489,7]
[344838020,1733824236903,-151.0,0.0002489,7]
[344838021,1733824236912,-1712.02319774,0.0002489,2]
[344838022,1733824236922,-151.0,0.0002489,7]
[344838023,1733824236931,-164.841343,0.0002489,7]
[344838024,1733824236940,-153.722496,0.0002489,7]
[344838025,1733824236950,-153.722496,0.0002489,7]
[344838026,1733824236959,-151.0,0.0002489,7]
[344838027,1733824236969,-151.0,0.0002489,7]
[344838028,1733824236979,-350.924054,0.0002489,7]
[344838029,1733824236988,-350.924054,0.0002489,7]
[344838030,1733824236998,-317.160023,0.0002489,7]
[344838031,1733824237007,-317.160023,0.0002489,7]
[344838032,1733824237016,-374.086881,0.0002489,7]
[344838033,1733824237025,-374.086881,0.0002489,7]
[344838034,1733824237035,-374.086881,0.0002489,7]
[344838035,1733824237044,-374.086881,0.0002489,7]
[344838036,1733824237054,-185.214921,0.0002489,7]
[344838037,1733824237063,-185.214921,0.0002489,7]
[344838038,1733824237073,-315.234612,0.0002489,7]
[344838039,1733824237082,-315.234612,0.0002489,7]
[344838040,1733824237092,-315.234612,0.0002489,7]
[344838041,1733824237102,-315.234612,0.0002489,7]
[344838042,1733824237112,-234.516001,0.0002489,7]
[344838043,1733824237122,-234.516001,0.0002489,7]
[344838044,1733824237137,-234.516001,0.0002489,7]
[344838045,1733824237148,-234.516001,0.0002489,7]
[344838046,1733824237157,-1011.4,0.0002489,7]
[344838047,1733824237168,-1011.4,0.0002489,7]
[344838048,1733824237177,-1011.4,0.0002489,7]
[344838049,1733824237187,-1011.4,0.0002489,7]
[344838050,1733824237196,-1011.4,0.0002489,7]
[344838051,1733824237206,-1011.4,0.0002489,7]
[344838052,1733824237215,-1011.4,0.0002489,7]
[344838053,1733824237224,-1011.4,0.0002489,7]
[344838054,1733824237234,-1011.4,0.0002489,7]
[344838055,1733824237244,-1011.4,0.0002489,7]
[344838056,1733824237253,-1011.4,0.0002489,7]
[344838057,1733824237264,-1011.4,0.0002489,7]
[344838058,1733824237273,-1011.4,0.0002489,7]
[344838059,1733824237283,-1011.4,0.0002489,7]
[344838060,1733824237292,-1011.4,0.0002489,7]
[344838061,1733824237301,-1011.4,0.0002489,7]
[344838062,1733824237311,-1011.4,0.0002489,7]
[344838063,1733824237320,-1011.4,0.0002489,7]
[344838064,1733824237329,-1011.4,0.0002489,7]
[344838065,1733824237339,-1011.4,0.0002489,7]
[344838066,1733824237350,-1517.1,0.0002489,7]
[344838067,1733824237359,-1517.1,0.0002489,7]
[344838068,1733824237369,-1517.1,0.0002489,7]
[344838069,1733824237384,-142863.8467606,0.000249,2]
[344838076,1733824238359,-164.8,0.0002424,2]
[344838077,1733824238369,-1056.5400013,0.000249,2]
[344838360,1733825432348,-153.0,0.00023259,2]
[344838362,1733825432358,-153.0,0.00023259,2]
[344838364,1733825432367,-400.0,0.00023648,2]
[344838366,1733825432377,-176.335,0.0002365,2]
[344838813,1733825483200,568.5,0.00029999,30]
[344838831,1733826516658,55398.21184518,0.00029999,32]
[344838881,1733826632602,-815.07288941,0.0001999,2]
[344838882,1733826632612,-400.0,0.00023426,2]
[344838883,1733826632621,-217.85450889,0.00023474,2]
[344838903,1733826638567,-82.14549111,0.00023474,2]
[344838904,1733826638577,-300.0,0.00023474,2]
[344838905,1733826638587,-8947.42939936,0.00023475,2]
[344838906,1733826638603,-2800.37535424,0.00023475,2]
[344838907,1733826638613,-150.0,0.00023476,2]
[344838908,1733826638623,-532.0,0.00023476,2]
[344838909,1733826638632,-2167.0,0.00023476,2]
[344838910,1733826638642,-2371.0,0.00023476,2]
[344838911,1733826638651,-372.156,0.00023476,2]
[344838912,1733826638661,-187.761824,0.00023517,2]
[344838913,1733826638670,-572.032,0.0002365,2]
[344838914,1733826638679,-154.87609912,0.0002365,2]
[344838915,1733826638689,-150.0,0.00023895,2]
[344838916,1733826638703,-400.0,0.00024293,2]
[344838917,1733826638713,-509.64227784,0.000245,2]
[344838919,1733826638725,-151.8511664,0.0002465,2]
[344838921,1733826638736,-155.87529976,0.00024833,2]
[344838923,1733826638745,-150.01,0.00024899,2]
[344838925,1733826638755,-166.29133193,0.00024899,8]
[344838926,1733826638765,-39171.63678859,0.000249,2]
[344838927,1733826638776,-187.0,0.000249,2]
[344838928,1733826638785,-605.32064866,0.00024973,2]
[344838929,1733826638795,-160.0,0.00024973,2]
[344838930,1733826638805,-160.24502489,0.00024973,2]
[344838931,1733826638814,-160.5,0.00024973,2]
[344838932,1733826638823,-160.0,0.00024973,2]
[344838933,1733826638833,-232.48791475,0.00024989,2]
[344838934,1733826638843,-241.70365267,0.00024989,2]
[344838935,1733826638852,-500.0,0.00024989,2]
[344838936,1733826638862,-374.17589846,0.00024989,2]
[344838937,1733826638871,-207.76862434,0.00024989,2]
[344838938,1733826638881,-437.49962307,0.00024989,2]
[344838939,1733826638891,-413.80250183,0.00024989,2]
[344838940,1733826638900,-416.21697125,0.00024989,2]
[344838941,1733826638910,-24111.81121645,0.0002499,5]
[344838942,1733826638933,-830.59193673,0.0002499,5]
[344838943,1733826638945,-1751.76477178,0.0002499,5]
[344838946,1733826640624,-1093.26067164,0.0002499,5]
[344838985,1733826646503,-226.84355571,0.000248,2]
[344838986,1733826646514,-226.84355569,0.00024845,2]
[344838987,1733826646524,-5588.91701825,0.0002499,5]
[344838988,1733826646536,-109031.5476459,0.0002499,5]
[344838994,1733827365280,1147.756285,0.00029993,30]
[344843952,1733829031930,-5873.9023768,0.00023292,2]
[344843954,1733829031942,-187.761825,0.00023292,2]
[344843955,1733829031952,-400.0,0.00023468,2]
[344843956,1733829031961,-548.288,0.0002374,2]
[344843957,1733829031971,-300.0,0.00023747,2]
[344843958,1733829031982,-150.0,0.00023748,2]
[344843959,1733829031990,-532.0,0.00023748,2]
[344843960,1733829032000,-295.862,0.00023748,2]
[344843961,1733829032009,-2371.0,0.00023748,2]
[344843962,1733829032019,-5000.0,0.00024013,7]
[344843963,1733829032028,-400.0,0.00024336,2]
[344843964,1733829032037,-1155.06997225,0.0002489,2]
[344843965,1733829032046,-178.65734057,0.00024899,2]
[344843966,1733829032055,-150.01,0.00024988,2]
[344843967,1733829032064,-31342.44848538,0.0002499,5]
[344844029,1733829038088,-2605.22999964,0.0002499,5]
[344844814,1733829046010,-265.3,0.0002499,5]
[344846872,1733829417418,513.6842977,0.00029992,30]
[344847769,1733830246271,-525.433,0.0002374,2]
[344847771,1733830246281,-118.28214105,0.00023748,2]
[344848225,1733830325467,14450.0,0.00029992,30]
[344848226,1733830366678,1843.599999,0.00029992,30]
[344848227,1733830461842,52686.21588105,0.00029992,30]
[344848256,1733831432342,-150.0,0.00023624,2]
[344848258,1733831432351,-413.718,0.00023624,2]
[344848259,1733831432361,-197.165,0.00023624,2]
[344848261,1733831432371,-503.325,0.0002374,2]
[344848263,1733831432380,-279.948955,0.00023931,2]
[344848264,1733831432389,-1543.27267346,0.000245,5]
[344848265,1733831432398,-155.44385682,0.00024698,2]
[344848266,1733831432408,-279.948955,0.00024816,2]
[344848267,1733831432417,-1010.68622571,0.0002489,2]
[344848268,1733831432427,-166.88455,0.00024973,2]
[344848269,1733831432436,-421.10204675,0.00024973,2]
[344848270,1733831432446,-227.01759543,0.00024973,2]
[344848271,1733831432455,-217.78480831,0.00024987,2]
[344848272,1733831432465,-300.0,0.00024989,2]
[344848273,1733831432474,-300.0,0.00024989,2]
[344848274,1733831432484,-3798.49829205,0.0002499,2]
[344848275,1733831432494,-58830.47928519,0.0002499,5]
[344848276,1733831432503,-41622.27226161,0.0002499,5]
[344848277,1733831432513,-151.0,0.0002499,7]
[344848278,1733831432524,-151.0,0.0002499,7]
[344848279,1733831432534,-151.0,0.0002499,7]
[344848280,1733831432543,-151.0,0.0002499,7]
[344848281,1733831432553,-151.0,0.0002499,7]
[344848282,1733831432562,-151.0,0.0002499,7]
[344848283,1733831432572,-151.0,0.0002499,7]
[344848284,1733831432582,-151.0,0.0002499,7]
[344848285,1733831432592,-151.0,0.0002499,7]
[344848286,1733831432602,-151.0,0.0002499,7]
[344848287,1733831432612,-151.0,0.0002499,7]
[344848288,1733831432621,-151.0,0.0002499,7]
[344848289,1733831432631,-151.0,0.0002499,7]
[344848290,1733831432641,-151.0,0.0002499,7]
[344848291,1733831432650,-151.0,0.0002499,7]
[344848292,1733831432659,-151.0,0.0002499,7]
[344848293,1733831432669,-151.0,0.0002499,7]
[344848294,1733831432678,-151.0,0.0002499,7]
[344848295,1733831432691,-151.0,0.0002499,7]
[344848296,1733831432700,-151.0,0.0002499,7]
[344848297,1733831432709,-835.324947,0.0002499,7]
[344848298,1733831432718,-835.324947,0.0002499,7]
[344848299,1733831432728,-151.0,0.0002499,7]
[344848300,1733831432738,-151.0,0.0002499,7]
[344848301,1733831432747,-835.324947,0.0002499,7]
[344848302,1733831432759,-151.0,0.0002499,7]
[344848303,1733831432769,-835.324947,0.0002499,7]
[344848304,1733831432779,-151.0,0.0002499,7]
[344848305,1733831432789,-94.21128701,0.0002499,7]
[344848348,1733831438534,-56.78871299,0.0002499,7]
[344848350,1733831438543,-151.0,0.0002499,7]
[344848364,1733831438650,-151.0,0.0002499,7]
[344848366,1733831438666,-151.0,0.0002499,7]
[344848368,1733831438676,-151.0,0.0002499,7]
[344848370,1733831438688,-151.0,0.0002499,7]
[344848372,1733831438697,-151.0,0.0002499,7]
[344848374,1733831438707,-151.0,0.0002499,7]
[344848376,1733831438716,-151.0,0.0002499,7]
[344848378,1733831438727,-151.0,0.0002499,7]
[344848380,1733831438737,-151.0,0.0002499,7]
[344848383,1733831438746,-326.96885065,0.00024999,7]
[344848385,1733831438756,-707.96243696,0.00025,2]
[344848387,1733831438768,-1108.53999896,0.00025,2]
[344848389,1733831438786,-3716.04369355,0.00025,2]
[344848486,1733831440447,-2982.02991079,0.00025,2]
[344848521,1733831729650,2478.29083624,0.0002188,10]
[344848522,1733831749086,10000.0,0.000185,2]
[344848523,1733831847097,1830.095,0.0002088,10]
[344848525,1733832308545,10000.0,0.0001851,2]
[344848598,1733832638457,-300.0,0.00022977,2]
[344848600,1733832638466,-300.0,0.00022977,2]
[344848602,1733832638476,-6488.55868209,0.00022978,2]
[344848724,1733832640350,-280.44625145,0.00022978,2]
[344848728,1733832640434,-18110.99506646,0.00022978,2]
[344848729,1733832640443,-267.63,0.00023497,2]
[344848730,1733832640454,-150.0,0.00023749,2]
[344848731,1733832640464,-482.314,0.0002375,2]
[344848732,1733832640473,-219.4769074,0.00023973,2]
[344848733,1733832640483,-500.0,0.00023973,2]
[344848734,1733832640493,-41664.58241341,0.00023975,2]
[344848735,1733832640504,-327.969373,0.00023991,2]
[344848736,1733832640514,-166.29,0.000245,7]
[344848737,1733832640525,-183.4018675,0.00024587,2]
[344848738,1733832640541,-155.02219285,0.00024636,2]
[344848739,1733832640550,-327.969373,0.00024878,2]
[344848740,1733832640560,-420.0,0.00024943,2]
[344848741,1733832640570,-501.57064666,0.00024973,2]
[344848742,1733832640579,-500.77229507,0.00024973,2]
[344848743,1733832640589,-500.0,0.00024973,2]
[344848744,1733832640598,-500.73423956,0.00024973,2]
[344848745,1733832640606,-265.32833993,0.00024973,2]
[344848746,1733832640616,-500.0,0.00024973,2]
[344848747,1733832640625,-227.16256999,0.00024973,2]
[344848748,1733832640634,-163.46059655,0.00024973,2]
[344848749,1733832640643,-502.10062141,0.00024973,2]
[344848750,1733832640656,-151.6423816,0.00024973,2]
[344848751,1733832640665,-500.0,0.00024999,2]
[344848752,1733832640675,-1899.24914603,0.00025,2]
[344848753,1733832640685,-13766.62267978,0.00025,2]
[344848754,1733832640694,-300.65,0.00025,2]
[344848755,1733832640704,-42119.77837586,0.00025,7]
[344848756,1733832640714,-6979.20085921,0.00025,2]
[344848757,1733832640724,-4098.62188038,0.00025,2]
[344848758,1733832640733,-2000.0,0.00025,2]
[344848759,1733832640742,-181.6407872,0.00025,5]
[344848760,1733832640754,-300.033408,0.00025,7]
[344848761,1733832640763,-151.0,0.00025,7]
[344848762,1733832640773,-151.0,0.00025,7]
[344848763,1733832640783,-151.0,0.00025,7]
[344848764,1733832640793,-165.006347,0.00025,7]
[344848765,1733832640803,-165.006347,0.00025,7]
[344848766,1733832640813,-165.006347,0.00025,7]
[344848767,1733832640823,-165.006347,0.00025,7]
[344848768,1733832640833,-165.006347,0.00025,7]
[344848769,1733832640843,-165.006347,0.00025,7]
[344848770,1733832640853,-151.0,0.00025,7]
[344848771,1733832640862,-151.0,0.00025,7]
[344848772,1733832640871,-151.0,0.00025,7]
[344848773,1733832640881,-151.0,0.00025,7]
[344848774,1733832640890,-151.0,0.00025,7]
[344848775,1733832640900,-151.0,0.00025,7]
[344848776,1733832640910,-153.323334,0.00025,7]
[344848777,1733832640919,-151.0,0.00025,7]
[344848778,1733832640928,-151.0,0.00025,7]
[344848779,1733832640938,-151.0,0.00025,7]
[344848780,1733832640948,-151.0,0.00025,7]
[344848781,1733832640957,-151.0,0.00025,7]
[344848782,1733832640967,-151.0,0.00025,7]
[344848783,1733832640976,-151.0,0.00025,7]
[344848784,1733832640986,-151.0,0.00025,7]
[344848785,1733832640995,-151.0,0.00025,7]
[344848786,1733832641007,-658.78863,0.00025,7]
[344848787,1733832641016,-658.78863,0.00025,7]
[344848788,1733832641026,-658.78863,0.00025,7]
[344848789,1733832641035,-658.78863,0.00025,7]
[344848790,1733832641044,-658.78863,0.00025,7]
[344848791,1733832641054,-658.78863,0.00025,7]
[344848792,1733832641067,-658.78863,0.00025,7]
[344848793,1733832641076,-658.78863,0.00025,7]
[344848794,1733832641085,-287.859677,0.00025,7]
[344848795,1733832641094,-151.0,0.00025,7]
[344848796,1733832641104,-151.0,0.00025,7]
[344848797,1733832641115,-151.0,0.00025,7]
[344848798,1733832641124,-151.0,0.00025,7]
[344848799,1733832641134,-151.0,0.00025,7]
[344848800,1733832641144,-151.0,0.00025,7]
[344848801,1733832641153,-151.0,0.00025,7]
[344848802,1733832641165,-192.08181296,0.00025,7]
[344848803,1733832641174,-151.0,0.00025,7]
[344848804,1733832641183,-151.0,0.00025,7]
[344848805,1733832641192,-197.191407,0.00025,7]
[344848806,1733832641202,-151.0,0.00025,7]
[344848807,1733832641211,-151.0,0.00025,7]
[344848808,1733832641221,-151.0,0.00025,7]
[344848809,1733832641232,-151.0,0.00025,7]
[344848810,1733832641242,-151.0,0.00025,7]
[344848811,1733832641252,-151.0,0.00025,7]
[344848812,1733832641261,-151.0,0.00025,7]
[344848813,1733832641271,-183.063996,0.00025,7]
[344848814,1733832641280,-668.259957,0.00025,7]
[344848815,1733832641289,-668.259957,0.00025,7]
[344848816,1733832641299,-668.259957,0.00025,7]
[344848817,1733832641308,-668.259957,0.00025,7]
[344848818,1733832641317,-668.259957,0.00025,7]
[344848819,1733832641326,-668.259957,0.00025,7]
[344848820,1733832641335,-668.259957,0.00025,7]
[344848821,1733832641344,-668.259957,0.00025,7]
[344848822,1733832641353,-408.790377,0.00025,7]